bitfinex/quotes_ETHUSD_20230116
["timestamp","ask_amount","ask_price","bid_price","bid_amount"]
[1673832287564,0.09670289,1564.1,1563.9,19.18281]
[1673832287717,0.09670289,1564.1,1564.0,1.5]
[1673832287926,0.09670289,1564.1,1564.0,14.28772]
[1673832288184,0.09670289,1564.1,1564.0,17.51772]
[1673832289031,0.09670289,1564.1,1564.0,17.28772]
[1673832289244,0.09670289,1564.1,1564.0,9.39386]
[1673832289395,0.09670289,1564.1,1564.0,15.78772]
[1673832289606,0.09670289,1564.1,1564.0,17.28772]
[1673832289945,0.09670289,1564.1,1564.0,15.78772]
[1673832290126,0.09670289,1564.1,1564.0,9.39386]
[1673832290341,0.09670289,1564.1,1564.0,15.78772]
[1673832290601,0.09670289,1564.1,1564.0,17.28772]
[1673832291827,0.09670289,1564.1,1564.0,16.01772]
[1673832292464,0.09670289,1564.1,1564.0,9.39386]
[1673832292675,0.68770289,1564.1,1564.0,9.39386]
[1673832293130,0.68770289,1564.1,1564.0,15.78772]
[1673832293131,0.09670289,1564.1,1564.0,15.78772]
[1673832294764,0.68770289,1564.1,1563.8,6.39432]
[1673832294978,0.68770289,1564.1,1563.7,6.39469]
[1673832295454,0.68770289,1564.1,1563.6,6.3954]
[1673832295603,0.68770289,1564.1,1563.5,16.39573]
[1673832295604,7.08121289,1564.1,1563.5,16.39573]
[1673832295812,7.08121289,1564.1,1563.5,22.79163]
[1673832295813,0.68770289,1564.1,1563.5,22.79163]
[1673832296058,1.16740289,1564.1,1563.5,16.39573]
[1673832296371,13.95438289,1564.1,1563.4,6.39609]
[1673832296582,19.44454369,1564.1,1563.3,6.39646]
[1673832296797,17.94454369,1564.1,1563.3,6.39646]
[1673832297015,10.09118445,1564.1,1563.3,7.67661511]
[1673832297233,10.09118445,1564.1,1563.3,14.07333511]
[1673832297234,7.56089289,1564.1,1563.3,14.07333511]
[1673832297421,13.95438289,1564.1,1563.3,14.07333511]
[1673832297606,15.45438289,1564.1,1563.4,3.0]
[1673832297814,7.93952829,1564.0,1563.4,3.0]
[1673832298082,0.4798,1563.9,1563.4,3.0]
[1673832298243,19.18447,1563.8,1563.2,0.0080711]
[1673832298457,1.69223529,1563.3,1563.2,0.0080711]
[1673832300698,3.19223529,1563.3,1563.2,0.0080711]
[1673832301009,3.19223529,1563.3,1563.2,0.7040711]
[1673832301010,1.69223529,1563.3,1563.2,0.7040711]
[1673832301220,1.69223529,1563.3,1563.2,13.4983311]
[1673832301441,1.69223529,1563.3,1563.2,7.7058763]
[1673832301802,1.69223529,1563.3,1563.2,4.3087463]
[1673832302275,1.69223529,1563.3,1563.2,3.0080711]
[1673832302752,1.69223529,1563.3,1563.2,0.0080711]
[1673832304998,2.50109382,1563.3,1563.2,0.0080711]
[1673832305209,15.77453382,1563.3,1563.2,0.0080711]
[1673832305551,17.27453382,1563.3,1562.6,0.10946726]
[1673832305736,0.0242133,1563.1,1562.6,0.10946726]
[1673832305953,12.79612,1563.0,1562.6,0.10946726]
[1673832306450,12.79754,1562.8,1562.6,0.10946726]
[1673832306660,0.23,1562.9,1562.6,0.10946726]
[1673832306661,0.4802,1562.7,1562.6,0.10946726]
[1673832306855,0.4801,1562.8,1562.6,0.10946726]
[1673832307608,13.27784,1562.8,1562.6,0.10946726]
[1673832308482,0.0242133,1563.1,1562.6,6.50879726]
[1673832308654,0.0242133,1563.1,1562.7,0.65087973]
[1673832308847,0.0242133,1563.1,1562.6,3.10946726]
[1673832309061,12.8193133,1563.1,1562.6,3.10946726]
[1673832309292,12.8193133,1563.1,1562.6,0.10946726]
[1673832309740,0.0242133,1563.1,1562.6,0.10946726]
[1673832309963,0.0242133,1563.1,1562.6,13.50902773]
[1673832310111,0.0242133,1563.1,1562.7,4.35090277]
[1673832310326,0.0242133,1563.1,1562.8,12.79736]
[1673832310535,0.0242133,1563.1,1562.9,4.5]
[1673832310888,1.69223529,1563.3,1563.1,1.5]
[1673832311060,1.69223529,1563.3,1563.2,19.19139]
[1673832311269,1.69223529,1563.3,1563.2,21.34419104]
[1673832311688,1.69223529,1563.3,1563.2,24.34419104]
[1673832312684,1.69223529,1563.3,1563.2,10.94941057]
[1673832313053,1.69223529,1563.3,1563.2,4.32228057]
[1673832313730,1.69223529,1563.3,1563.2,3.0]
[1673832314100,1.69223529,1563.3,1563.0,3.0]
[1673832314310,1.69223529,1563.3,1563.0,9.39787]
[1673832314534,1.69223529,1563.3,1563.0,15.79582]
[1673832316467,1.69223529,1563.3,1563.1,1.73]
[1673832316692,1.69223529,1563.3,1563.2,19.36439]
[1673832316996,1.69223529,1563.3,1563.2,9.57013]
[1673832317308,1.69223529,1563.3,1563.2,3.173]
[1673832317731,1.69223529,1563.3,1563.2,9.57013]
[1673832318044,1.69223529,1563.3,1563.2,16.19726]
[1673832318630,1.69223529,1563.3,1563.2,15.96726]
[1673832319151,1.69223529,1563.3,1563.2,9.57013]
[1673832319857,1.69223529,1563.3,1563.2,15.96726]
[1673832320769,1.69223529,1563.3,1563.2,17.46726]
[1673832321027,1.69223529,1563.3,1563.2,16.19726]
[1673832321258,1.69223529,1563.3,1563.2,17.69726]
[1673832321431,1.69223529,1563.3,1563.2,16.19726]
[1673832321646,1.69223529,1563.3,1563.2,17.69726]
[1673832322161,1.69223529,1563.3,1563.2,18.28685373]
[1673832322605,0.09670289,1564.1,1563.3,3.52068537]
[1673832322865,0.09670289,1564.1,1563.6,25.5818]
[1673832322980,0.09670289,1564.1,1563.7,0.23]
[1673832323189,0.09670289,1564.1,1563.8,14.28918]
[1673832323455,0.09670289,1564.1,1563.9,3.0]
[1673832323773,0.09670289,1564.1,1564.0,6.39386]
[1673832323982,0.09670289,1564.1,1564.0,7.70212159]
[1673832324135,0.09670289,1564.1,1564.0,15.59598159]
[1673832324346,0.09670289,1564.1,1564.0,15.82598159]
[1673832324661,0.68770289,1564.1,1564.0,3.0]
[1673832325025,0.09670289,1564.1,1563.9,3.0]
[1673832325216,0.09670289,1564.1,1563.9,10.333702]
[1673832325427,0.09670289,1564.1,1563.9,16.727972]
[1673832326093,0.09670289,1564.1,1564.0,0.23]
[1673832326400,0.09670289,1564.1,1564.0,14.51772]
[1673832326551,0.09670289,1564.1,1564.0,17.51772]
[1673832326762,0.09670289,1564.1,1564.0,19.25147134]
[1673832327230,0.09670289,1564.1,1564.0,19.84106507]
[1673832327821,0.09670289,1564.1,1564.0,17.52147134]
[1673832328069,0.09670289,1564.1,1564.0,9.39386]
[1673832328070,0.68770289,1564.1,1564.0,9.39386]
[1673832328901,0.95158228,1563.9,1563.5,6.39556]
[1673832329165,0.95158228,1563.9,1563.4,6.39616]
[1673832329282,0.95158228,1563.9,1563.4,14.29247]
[1673832329492,0.95158228,1563.9,1563.4,12.79247]
[1673832329733,0.95158228,1563.9,1563.4,8.315042]
[1673832330167,0.95158228,1563.9,1563.4,14.711352]
[1673832331522,0.95158228,1563.9,1563.3,6.39635]
[1673832331735,7.34589228,1563.9,1563.3,6.39635]
[1673832332173,1.5,1563.8,1563.2,6.39707]
[1673832332382,7.89483,1563.8,1563.2,6.39707]
[1673832332595,10.05833323,1563.8,1563.2,6.39707]
[1673832333312,10.05833323,1563.8,1563.3,0.39844636]
[1673832333507,0.4799,1563.7,1563.3,0.39844636]
[1673832333699,0.4799,1563.7,1563.3,3.39844636]
[1673832334133,6.87506,1563.7,1563.3,0.39844636]
[1673832334347,0.687506,1563.6,1563.3,0.29844636]
[1673832335225,0.4799,1563.5,1563.3,0.29844636]
[1673832335532,0.4799,1563.5,1563.3,0.24844636]
[1673832336056,1.167406,1563.6,1563.3,0.24844636]
[1673832336371,0.4799,1563.7,1563.3,0.24844636]
[1673832337112,13.958054,1563.7,1563.3,0.24844636]
[1673832337827,0.4799,1563.7,1563.3,6.64516636]
[1673832338042,1.43138228,1563.9,1563.3,13.04188636]
[1673832338429,0.95158228,1563.9,1563.3,13.04188636]
[1673832338637,0.95158228,1563.9,1563.4,3.0]
[1673832338950,7.34606228,1563.9,1563.4,3.0]
[1673832339160,2.23460623,1563.8,1563.4,3.0]
[1673832339407,8.62957623,1563.8,1563.4,3.0]
[1673832339732,7.34606228,1563.9,1563.4,3.0]
[1673832339924,0.95158228,1563.9,1563.4,9.39631]
[1673832340255,0.95158228,1563.9,1563.4,15.79262]
[1673832342255,0.95158228,1563.9,1563.6,19.18623]
[1673832342419,0.95158228,1563.9,1563.8,6.39467]
[1673832342630,0.95158228,1563.9,1563.8,12.78934]
[1673832343101,0.95158228,1563.9,1563.8,6.39467]
[1673832343255,0.91321666,1563.9,1563.8,3.0]
[1673832343474,0.91321666,1563.9,1563.7,6.39478]
[1673832344041,0.91321666,1563.9,1563.8,1.5]
[1673832344245,0.91321666,1563.9,1563.8,17.28934]
[1673832344460,0.91321666,1563.9,1563.8,15.78934]
[1673832344867,0.91321666,1563.9,1563.7,6.39478]
[1673832345673,0.91321666,1563.9,1563.7,12.78986]
[1673832345884,0.91321666,1563.9,1563.7,14.28986]
[1673832346094,0.91321666,1563.9,1563.8,3.0]
[1673832346303,0.91321666,1563.9,1563.8,17.368326]
[1673832347104,0.91321666,1563.9,1563.4,1.871]
[1673832347105,0.91321666,1563.9,1563.3,0.24844636]
[1673832347247,1.69198303,1563.7,1563.5,6.39583]
[1673832347454,1.69198303,1563.7,1563.6,3.0]
[1673832347722,1.69198303,1563.7,1563.3,5.19744636]
[1673832347723,1.69198303,1563.7,1563.3,6.64488636]
[1673832348104,1.69198303,1563.7,1563.3,0.24844636]
[1673832348331,9.37573933,1563.7,1563.3,0.24844636]
[1673832349034,15.77092933,1563.7,1563.3,0.24844636]
[1673832349808,17.27092933,1563.7,1563.3,0.24844636]
[1673832349984,15.77092933,1563.7,1563.3,0.24844636]
[1673832350459,17.27092933,1563.7,1563.3,0.24844636]
[1673832350857,18.22093392,1563.7,1563.3,0.24844636]
[1673832351248,2.17188303,1563.7,1563.3,0.24844636]
[1673832351490,2.17188303,1563.7,1563.3,6.64513636]
[1673832351716,1.69198303,1563.7,1563.3,6.64513636]
[1673832352353,1.69198303,1563.7,1563.3,0.24844636]
[1673832352863,8.08714303,1563.7,1563.3,0.24844636]
[1673832353098,10.41982979,1563.7,1563.3,0.24844636]
[1673832353231,17.29488979,1563.7,1563.3,0.24844636]
[1673832353442,18.24489438,1563.7,1563.3,0.24844636]
[1673832353781,19.66146023,1563.7,1563.3,0.24844636]
[1673832354373,11.84973438,1563.7,1563.3,0.24844636]
[1673832354532,9.51704762,1563.7,1563.3,0.24844636]
[1673832354706,2.17188303,1563.7,1563.3,13.04145636]
[1673832355601,1.69198303,1563.7,1563.3,13.04145636]
[1673832355772,1.69198303,1563.7,1563.4,3.0]
[1673832355992,1.69198303,1563.7,1563.5,6.3959]
[1673832356220,1.69198303,1563.7,1563.4,3.0]
[1673832356552,2.50065333,1563.7,1563.3,0.24844636]
[1673832356710,9.37564333,1563.7,1563.3,0.24844636]
[1673832357072,17.27073333,1563.7,1563.3,0.24844636]
[1673832357458,2.53680054,1563.6,1563.3,0.24844636]
[1673832357682,6.3959,1563.5,1563.3,0.24844636]
[1673832359015,12.7918,1563.5,1563.3,0.24844636]
[1673832359263,13.2717,1563.5,1563.3,0.24844636]
[1673832360173,15.00354046,1563.5,1563.3,0.24844636]
[1673832360389,0.4799,1563.4,1563.3,0.24844636]
[1673832360652,13.27252,1563.4,1563.3,0.24844636]
[1673832360823,6.87621,1563.4,1563.3,0.24844636]
[1673832361046,7.82621459,1563.4,1563.3,0.24844636]
[1673832361259,6.87621,1563.4,1563.3,0.24844636]
[1673832361489,0.4799,1563.4,1563.3,0.24844636]
[1673832362059,5.50155999,1563.7,1563.3,0.24844636]
[1673832362320,3.12188762,1563.7,1563.3,0.24844636]
[1673832362486,2.17188303,1563.7,1563.3,0.24844636]
[1673832362934,1.69198303,1563.7,1563.3,7.759724]
[1673832363166,1.69198303,1563.7,1563.4,3.0]
[1673832363376,1.69198303,1563.7,1563.5,6.3959]
[1673832364070,1.69198303,1563.7,1563.4,6.39616]
[1673832364289,0.01547727,1563.6,1563.4,6.39616]
[1673832364537,0.01547727,1563.6,1563.5,16.431416]
[1673832365841,0.01547727,1563.6,1563.5,18.161416]
[1673832366744,0.91321666,1563.9,1563.8,1.5]
[1673832366900,1.666e-05,1563.9,1563.8,4.73]
[1673832367099,1.666e-05,1563.9,1563.8,18.4383497]
[1673832368528,0.09670289,1564.1,1563.8,18.4383497]
[1673832368529,0.00070289,1564.1,1563.8,18.4383497]
[1673832368678,0.09670289,1564.4,1564.0,8.371]
[1673832368890,0.09670289,1564.4,1564.3,19.17789]
[1673832369104,0.09670289,1564.4,1564.3,11.83386117]
[1673832369366,0.09670289,1564.4,1564.3,16.17841881]
[1673832369753,0.09670289,1564.4,1564.3,17.67841881]
[1673832370065,0.09670289,1564.4,1564.3,16.17841881]
[1673832370273,0.09670289,1564.4,1564.3,9.55578881]
[1673832370712,0.09670289,1564.4,1564.3,15.94841881]
[1673832371116,0.09670289,1564.4,1564.3,16.17841881]
[1673832371676,0.10088834,1564.6,1564.4,1.5]
[1673832371912,0.10088834,1564.6,1564.5,21.51443]
[1673832372124,0.10088834,1564.6,1564.5,24.51443]
[1673832374120,0.69188834,1564.6,1564.5,15.78362]
[1673832374278,0.69188834,1564.6,1564.5,9.39181]
[1673832374492,0.69188834,1564.6,1564.5,3.0]
[1673832375452,0.10088834,1564.6,1564.5,3.0]
[1673832375705,0.10088834,1564.6,1564.5,15.78362]
[1673832375854,0.10088834,1564.6,1564.5,17.5722457]
[1673832376747,0.10088834,1564.6,1564.5,17.3422457]
[1673832377230,0.69188834,1564.6,1564.5,3.0]
[1673832377426,0.69188834,1564.6,1564.5,1.30875192]
[1673832377638,0.69188834,1564.6,1563.9,6.39398]
[1673832377852,0.4796,1564.5,1563.7,6.39489]
[1673832378105,0.4796,1564.5,1563.7,7.675395]
[1673832378106,6.39249,1564.4,1563.7,7.675395]
[1673832378275,0.4797,1564.3,1563.7,7.675395]
[1673832378713,8.37237,1564.3,1563.7,7.675395]
[1673832378915,0.4797,1564.3,1563.7,7.675395]
[1673832379150,0.4797,1564.3,1563.8,3.0]
[1673832379547,7.92434883,1564.5,1563.8,10.78717834]
[1673832379548,1.9796,1564.4,1563.8,10.78717834]
[1673832379711,0.64633918,1564.3,1563.3,13.04150636]
[1673832379925,12.78819,1564.0,1563.3,6.64497636]
[1673832380291,0.4798,1563.9,1563.3,6.64497636]
[1673832380741,0.4798,1563.9,1563.3,13.04169636]
[1673832381171,12.78855,1563.9,1563.3,0.24844636]
[1673832381342,6.87479,1563.8,1563.3,0.24844636]
[1673832381554,8.37479,1563.8,1563.3,0.24844636]
[1673832382126,0.4798,1563.8,1563.3,13.04171636]
[1673832382338,0.4798,1563.9,1563.4,1.30417164]
[1673832382555,0.4798,1563.9,1563.4,10.70028164]
[1673832382927,0.4797,1564.1,1563.4,17.09659164]
[1673832384183,21.4944,1564.2,1563.5,0.23]
[1673832384444,34.28066,1564.2,1563.5,6.39571]
[1673832384595,5.407766,1564.1,1563.4,3.0]
[1673832384811,12.78862,1563.9,1563.3,3.24844636]
[1673832385292,0.4798,1563.8,1563.3,0.24844636]
[1673832385607,6.39529,1563.7,1563.3,0.24844636]
[1673832385823,14.73858,1563.7,1563.3,0.24844636]
[1673832386144,19.1877,1563.5,1563.3,0.24844636]
[1673832386468,13.27252,1563.4,1563.3,0.24844636]
[1673832386820,14.77252,1563.4,1563.3,0.24844636]
[1673832387035,14.77252,1563.4,1563.3,0.24546964]
[1673832387249,0.4799,1563.4,1563.3,0.24546964]
[1673832387778,6.8758,1563.5,1563.3,0.24546964]
[1673832388350,16.2743658,1563.5,1563.3,0.24546964]
[1673832389574,6.8758,1563.5,1563.3,0.24546964]
[1673832389792,21.677,1563.6,1563.3,0.24546964]
[1673832389978,6.39469,1563.8,1563.3,0.24546964]
[1673832390189,12.78938,1563.8,1563.3,0.24546964]
[1673832390451,19.18665,1563.6,1563.3,0.24546964]
[1673832390641,8.314845,1563.5,1563.3,0.24546964]
[1673832391036,15.190925,1563.5,1563.3,0.24546964]
[1673832391263,21.587105,1563.5,1563.3,0.24546964]
[1673832391480,1.5,1563.4,1563.3,0.24546964]
[1673832391684,14.77252,1563.4,1563.3,0.24546964]
[1673832391928,17.7208745,1563.4,1563.3,0.24546964]
[1673832392866,20.7208745,1563.4,1563.3,0.24546964]
[1673832393179,0.4799,1563.4,1563.3,0.24546964]
[1673832393516,14.77252,1563.4,1563.3,0.24546964]
[1673832394846,14.77252,1563.4,1563.3,0.00046964]
[1673832395067,0.73593927,1563.2,1562.7,0.10769977]
[1673832395393,12.79534,1563.1,1562.7,0.10769977]
[1673832395548,0.48,1563.1,1562.7,0.42941647]
[1673832395757,7.61323927,1563.2,1562.7,0.10769977]
[1673832395972,0.73593927,1563.2,1562.7,12.90604977]
[1673832396188,0.73593927,1563.2,1562.8,9.39836]
[1673832396502,0.73593927,1563.2,1562.8,15.79705]
[1673832397225,6.39678,1563.3,1562.8,9.39836]
[1673832397440,6.39678,1563.3,1562.8,10.98888298]
[1673832398349,28.28081,1563.4,1562.8,10.98888298]
[1673832398813,21.4046,1563.4,1562.8,17.38765298]
[1673832399485,9.39518,1563.7,1562.8,17.38765298]
[1673832399486,6.39518,1563.7,1563.0,6.39775]
[1673832399693,6.39518,1563.7,1563.0,12.7957]
[1673832399867,6.39518,1563.7,1563.2,6.39687]
[1673832400544,12.79036,1563.7,1563.1,1.08266036]
[1673832400756,1.08266035,1563.0,1562.8,14.6476]
[1673832400975,1.08266035,1563.0,1562.9,9.39834]
[1673832401186,1.08266035,1563.0,1562.9,3.0]
[1673832401808,1.08266035,1563.0,1562.8,3.0]
[1673832402914,1.08266035,1563.0,1562.8,15.79744]
[1673832403651,1.08266035,1563.0,1562.8,3.0]
[1673832404572,1.08266035,1563.0,1562.7,0.10769977]
[1673832404724,0.10826604,1562.9,1562.7,0.10769977]
[1673832404911,6.39839,1562.9,1562.7,0.10769977]
[1673832405382,14.29678,1562.9,1562.7,0.10769977]
[1673832406394,6.39839,1562.9,1562.7,0.10769977]
[1673832407115,7.96091035,1563.0,1562.7,0.10769977]
[1673832407538,14.35916035,1563.0,1562.7,0.10769977]
[1673832407752,1.43591603,1562.9,1562.7,0.10769977]
[1673832408004,19.19631,1562.8,1562.7,0.10769977]
[1673832409228,19.19631,1562.8,1562.4,0.10946726]
[1673832409229,6.39943,1562.7,1562.4,0.10946726]
[1673832409688,12.79754,1562.8,1562.4,0.10946726]
[1673832409862,6.39877,1562.8,1562.4,0.10946726]
[1673832410273,6.87887,1562.8,1562.4,0.10946726]
[1673832410745,13.27764,1562.8,1562.4,0.10946726]
[1673832410905,15.395238,1562.8,1562.4,0.10946726]
[1673832412164,16.895238,1562.8,1562.4,0.10946726]
[1673832412398,13.27764,1562.8,1562.4,0.10946726]
[1673832413851,7.96100035,1563.0,1562.4,12.91016726]
[1673832414382,7.96100035,1563.0,1562.4,0.10946726]
[1673832414383,13.87916035,1563.0,1562.4,0.10946726]
[1673832414599,16.25483639,1563.0,1562.4,0.76049299]
[1673832415104,7.48090035,1563.0,1562.4,16.56116299]
[1673832416173,1.08266035,1563.0,1562.5,1.5]
[1673832416391,1.08266035,1563.0,1562.6,6.39943]
[1673832417179,1.08266035,1563.0,1562.6,6.34943]
[1673832417326,1.08266035,1563.0,1562.7,0.634943]
[1673832418157,8.98065035,1563.0,1562.4,3.76049299]
[1673832418366,15.37864035,1563.0,1562.4,3.76049299]
[1673832418652,13.87864035,1563.0,1562.4,3.76049299]
[1673832418948,1.08266035,1563.0,1562.4,16.56125299]
[1673832419100,1.08266035,1563.0,1562.4,18.06125299]
[1673832419306,1.08266035,1563.0,1562.6,6.39943]
[1673832420213,1.08266035,1563.0,1562.6,12.79902]
[1673832420430,1.08266035,1563.0,1562.7,3.0]
[1673832420744,1.08266035,1563.0,1562.7,15.79798]
[1673832420973,1.08266035,1563.0,1562.7,6.39883]
[1673832421111,1.08266035,1563.0,1562.5,8.2058653]
[1673832421802,13.87863035,1563.0,1562.5,1.8061253]
[1673832421949,1.08266035,1563.0,1562.6,0.18061253]
[1673832422163,1.08266035,1563.0,1562.7,6.3991]
[1673832422584,1.08266035,1563.0,1562.6,6.58003253]
[1673832422837,1.08266035,1563.0,1562.7,3.0]
[1673832423058,1.08266035,1563.0,1562.5,8.2061153]
[1673832423059,7.48061035,1563.0,1562.5,8.2061153]
[1673832423246,17.81147543,1563.0,1562.4,0.10946726]
[1673832423635,17.72804128,1563.0,1562.4,0.10946726]
[1673832424016,9.84718079,1563.0,1562.4,12.91004726]
[1673832424166,2.03266494,1563.0,1562.4,14.41004726]
[1673832424376,2.03266494,1563.0,1562.5,3.0]
[1673832424685,1.08266035,1563.0,1562.6,19.19817]
[1673832424958,1.08266035,1563.0,1562.5,9.39995]
[1673832425123,16.32856494,1563.0,1562.5,4.59095973]
[1673832425333,4.03734126,1562.9,1562.5,4.59095973]
[1673832425575,0.95000459,1562.9,1562.5,4.59095973]
[1673832425899,15.33424819,1562.9,1562.5,3.0]
[1673832426067,16.66347044,1562.9,1562.4,0.10946726]
[1673832426279,2.53748277,1562.8,1562.4,0.10946726]
[1673832426491,6.39924,1562.7,1562.4,0.10946726]
[1673832427054,6.39892,1562.8,1562.4,0.10946726]
[1673832427266,14.96253246,1562.8,1562.4,0.10946726]
[1673832427574,2.53757499,1562.7,1562.4,0.10946726]
[1673832427787,6.39959,1562.6,1562.4,0.10946726]
[1673832428154,7.34929459,1562.7,1562.4,0.10946726]
[1673832428539,2.36657044,1562.9,1562.4,12.91017726]
[1673832428685,0.95000459,1562.9,1562.5,1.29101773]
[1673832428895,2.53738318,1562.9,1562.5,7.69093773]
[1673832429372,2.03266494,1563.0,1562.6,3.0]
[1673832429580,1.08266035,1563.0,1562.7,6.39909]
[1673832429890,16.24517079,1563.0,1562.6,1.30687671]
[1673832430094,16.24517079,1563.0,1562.5,1.29101773]
[1673832430316,1.58731319,1562.9,1562.5,1.29101773]
[1673832430622,16.75108363,1562.9,1562.4,0.10946726]
[1673832430837,6.39926,1562.7,1562.4,0.10946726]
[1673832431156,7.89926,1562.7,1562.4,0.10946726]
[1673832431458,15.04314459,1562.8,1562.4,0.10946726]
[1673832431459,2.24500459,1562.8,1562.4,0.10946726]
[1673832431683,14.35117921,1562.8,1562.4,0.10946726]
[1673832431872,6.39959,1562.6,1562.4,0.10946726]
[1673832432044,7.89959,1562.6,1562.4,0.10946726]
[1673832432881,6.39959,1562.6,1562.4,0.10946726]
[1673832433515,12.79918,1562.6,1562.4,0.10946726]
[1673832433742,17.62579715,1562.6,1562.4,0.10946726]
[1673832433972,1.5,1562.5,1562.4,0.10946726]
[1673832434143,14.3,1562.5,1562.4,0.10946726]
[1673832434354,12.8,1562.5,1562.4,0.10946726]
[1673832434562,15.53508459,1562.7,1562.4,0.10946726]
[1673832434830,18.79071968,1562.7,1562.4,0.10946726]
[1673832435002,14.29954,1562.6,1562.4,0.10946726]
[1673832435820,6.39961,1562.6,1562.4,0.10946726]
[1673832436932,9.13557459,1562.7,1562.4,0.10946726]
[1673832437125,17.91652018,1562.7,1562.4,0.10946726]
[1673832437293,22.79021825,1562.7,1562.4,0.10946726]
[1673832437827,1.5,1562.6,1562.4,0.10946726]
[1673832438030,7.89964,1562.6,1562.4,0.10946726]
[1673832438237,1.43020459,1562.7,1562.4,0.10946726]
[1673832438505,11.28860577,1562.9,1562.4,0.10946726]
[1673832438506,1.43010459,1562.9,1562.4,7.16085099]
[1673832438693,0.4801,1562.9,1562.4,8.45485099]
[1673832439453,2.03266494,1563.0,1562.5,4.304]
[1673832439659,1.08266035,1563.0,1562.6,20.50429]
[1673832440797,1.08266035,1563.0,1562.6,19.19829]
[1673832441012,1.08266035,1563.0,1562.5,18.03682644]
[1673832441198,1.08266035,1563.0,1562.6,12.79913]
[1673832441635,1.08266035,1563.0,1562.6,14.10513]
[1673832441857,1.08266035,1563.0,1562.7,3.0]
[1673832442075,1.08266035,1563.0,1562.8,0.3]
[1673832442964,1.08266035,1563.0,1562.5,10.02847956]
[1673832443229,1.08266035,1563.0,1562.6,3.0]
[1673832444055,15.37856035,1563.0,1562.6,3.0]
[1673832444236,15.37856035,1563.0,1562.4,3.9926537]
[1673832444237,2.53736487,1562.9,1562.4,3.9926537]
[1673832444446,6.39882,1562.8,1562.5,3.0]
[1673832444697,0.95000459,1562.9,1562.5,3.0]
[1673832445016,2.53735219,1562.9,1562.5,3.0]
[1673832445224,2.53735219,1562.9,1562.5,15.79982]
[1673832445435,0.95000459,1562.9,1562.5,15.79982]
[1673832445649,0.95000459,1562.9,1562.5,7.76491566]
[1673832445965,2.53734457,1562.9,1562.5,7.76491566]
[1673832446179,2.53734457,1562.9,1562.4,0.9926537]
[1673832446494,2.53734457,1562.9,1562.4,3.05946726]
[1673832446495,16.62817457,1562.9,1562.4,3.05946726]
[1673832446685,7.34836459,1562.9,1562.4,9.45980726]
[1673832447010,8.76493044,1562.9,1562.4,9.45980726]
[1673832447234,7.34836459,1562.9,1562.4,9.45980726]
[1673832447383,9.84722079,1563.0,1562.4,16.7933937]
[1673832447589,2.03266494,1563.0,1562.5,1.296]
[1673832447824,1.08266035,1563.0,1562.6,6.39939]
[1673832448072,1.08266035,1563.0,1562.7,0.639939]
[1673832448238,1.08266035,1563.0,1562.7,7.038939]
[1673832448609,1.08266035,1563.0,1562.7,14.744119]
[1673832448823,1.08266035,1563.0,1562.8,5.804]
[1673832448978,1.08266035,1563.0,1562.9,6.39836]
[1673832449188,1.08266035,1563.0,1562.9,1.710098]
[1673832449399,1.08266035,1563.0,1562.8,3.0]
[1673832449640,1.08266035,1563.0,1562.8,15.79748]
[1673832449851,1.08266035,1563.0,1562.9,7.70236]
[1673832450079,1.08266035,1563.0,1562.9,10.70236]
[1673832450293,1.08266035,1563.0,1562.9,17.10072]
[1673832450607,1.08266035,1563.0,1562.9,17.33072]
[1673832450822,1.08266035,1563.0,1562.9,18.83072]
[1673832451922,1.08266035,1563.0,1562.9,19.42017838]
[1673832452506,0.95000459,1563.5,1562.9,21.05990644]
[1673832452689,0.4799,1563.6,1563.3,1.306]
[1673832452865,0.09668254,1563.7,1563.4,7.69207]
[1673832453070,0.09668254,1563.7,1563.4,13.13641633]
[1673832453503,0.09668254,1563.7,1563.6,12.79098]
[1673832453719,0.09668254,1563.7,1563.6,14.29098]
[1673832453924,0.09668254,1563.7,1563.6,18.81898]
[1673832454342,0.09668254,1563.7,1563.6,17.31898]
[1673832454999,0.09668254,1563.7,1563.6,18.81898]
[1673832455210,0.09668254,1563.7,1563.6,15.39498]
[1673832455439,0.09668254,1563.7,1563.4,7.70192]
[1673832455654,0.09668254,1563.7,1563.6,12.79098]
[1673832456232,0.09668254,1563.7,1563.5,8.469722]
[1673832456683,0.09668254,1563.7,1563.5,14.865622]
[1673832457299,0.09668254,1563.7,1563.5,8.469722]
[1673832457940,0.03776645,1563.8,1563.5,8.469722]
[1673832458123,0.03776645,1563.8,1563.6,1.306]
[1673832458457,0.03776645,1563.8,1563.7,14.09616]
[1673832458671,0.03776645,1563.8,1563.7,14.32616]
[1673832458897,0.03776645,1563.8,1563.7,10.93108]
[1673832459229,0.03776645,1563.8,1563.7,9.39508]
[1673832460161,0.03776645,1563.8,1563.7,17.32616]
[1673832460986,0.03776645,1563.8,1563.7,10.70108]
[1673832461194,0.62876645,1563.8,1563.5,3.0]
[1673832461429,0.62876645,1563.8,1563.4,14.09799]
[1673832461595,0.62876645,1563.8,1563.5,6.39585]
[1673832462333,0.03776645,1563.8,1563.5,6.39585]
[1673832463538,0.03776645,1563.8,1563.5,12.79175]
[1673832463751,0.03776645,1563.8,1563.6,1.306]
[1673832464061,0.03776645,1563.8,1563.7,12.79016]
[1673832465059,0.03776645,1563.8,1563.7,15.79016]
[1673832466055,0.03776645,1563.8,1563.7,17.08616]
[1673832466376,0.03776645,1563.8,1563.7,17.31616]
[1673832466895,0.03776645,1563.8,1563.7,18.81616]
[1673832467633,0.03776645,1563.8,1563.7,20.12216]
[1673832467947,0.03776645,1563.8,1563.7,20.71161838]
[1673832468119,0.03444899,1564.3,1563.8,1.5]
[1673832468337,0.03444899,1564.3,1564.1,1.306]
[1673832468666,0.03444899,1564.3,1564.2,22.71012]
[1673832468989,0.03444899,1564.3,1564.2,21.40412]
[1673832469201,0.03444899,1564.3,1564.2,24.40412]
[1673832469520,0.03444899,1564.3,1564.2,30.79716]
[1673832469680,0.03444899,1564.3,1564.2,24.40412]
[1673832470556,0.03444899,1564.3,1564.2,25.71012]
[1673832473168,0.03444899,1564.3,1564.2,31.58912]
[1673832473380,0.10088834,1564.6,1564.3,1.5]
[1673832473591,0.10088834,1564.6,1564.5,2.604]
[1673832473800,0.10088834,1564.6,1564.5,18.38762]
[1673832474013,0.10088834,1564.6,1564.5,18.61762]
[1673832474935,0.10088834,1564.6,1564.5,10.92181]
[1673832475614,1.69120812,1564.4,1564.2,6.39281]